bitfinex-derivatives/quotes_BNBF0:USTF0_20250417
["timestamp","ask_amount","ask_price","bid_price","bid_amount"]
[1744898590484,0.34009556,588.07,587.25,0.638]
[1744898590685,0.30355072,588.06,587.25,0.638]
[1744898591284,0.30355072,588.06,587.26,0.754]
[1744898592585,0.34009556,588.07,587.26,0.754]
[1744898592779,0.3035301,588.06,587.26,0.754]
[1744898593584,0.34010713,588.05,587.26,0.754]
[1744898593785,0.3035301,588.04,587.26,0.754]
[1744898597787,0.3401187,588.03,587.26,0.754]
[1744898598189,0.3035301,588.02,587.26,0.754]
[1744898598388,0.34013026,588.01,587.26,0.754]
[1744898598588,0.3035301,588.0,587.26,0.754]
[1744898598789,0.34014183,587.99,587.26,0.754]
[1744898599189,0.3035301,587.98,587.26,0.754]
[1744898599384,0.3401534,587.97,587.26,0.754]
[1744898599590,0.3035301,587.96,587.26,0.754]
[1744898599785,0.34016498,587.95,587.26,0.754]
[1744898600685,0.30348035,587.94,587.26,0.754]
[1744898601586,0.34016498,587.95,587.26,0.754]
[1744898606990,0.30362307,587.94,587.26,0.754]
[1744898607194,0.34017655,587.93,587.26,0.754]
[1744898608594,0.30366362,587.92,587.26,0.754]
[1744898608790,0.34018812,587.91,587.26,0.754]
[1744898611899,0.30368526,587.9,587.26,0.754]
[1744898612097,0.34019969,587.89,587.26,0.754]
[1744898612298,0.30368526,587.88,587.26,0.754]
[1744898612499,0.34021127,587.87,587.26,0.754]
[1744898612697,0.30368526,587.86,587.26,0.754]
[1744898612896,0.34022284,587.85,587.26,0.754]
[1744898613097,0.30368526,587.84,587.26,0.754]
[1744898613804,0.34023442,587.83,587.26,0.754]
[1744898614004,0.30368526,587.82,587.26,0.754]
[1744898614403,0.34024599,587.81,587.26,0.754]
[1744898614600,0.30368526,587.8,587.27,0.827]
[1744898615000,0.34025757,587.79,587.27,0.827]
[1744898615199,0.30368526,587.78,587.27,0.827]
[1744898615399,0.34026915,587.77,587.27,0.827]
[1744898615704,0.30368526,587.76,587.27,0.827]
[1744898615999,0.34028073,587.75,587.27,0.827]
[1744898616208,0.30368526,587.74,587.27,0.827]
[1744898616506,0.34029231,587.73,587.27,0.827]
[1744898616699,0.30368526,587.72,587.27,0.827]
[1744898616901,0.34030389,587.71,587.27,0.827]
[1744898617104,0.30368526,587.7,587.27,0.827]
[1744898617306,0.34031547,587.69,587.27,0.827]
[1744898617498,0.30368526,587.68,587.27,0.827]
[1744898617702,0.34032705,587.67,587.27,0.827]
[1744898618105,0.30367262,587.66,587.27,0.827]
[1744898618305,0.34033863,587.65,587.27,0.827]
[1744898618607,0.30367262,587.64,587.27,0.827]
[1744898618907,0.30367262,587.64,587.27,0.82054751]
[1744898619206,0.30367262,587.64,585.79,1.07975686]
[1744898619408,0.30367262,587.64,585.8,0.31309734]
[1744898619610,0.34033863,587.65,585.81,0.65450702]
[1744898619807,0.34033863,587.65,585.82,0.3130994]
[1744898620108,0.34033863,587.65,585.83,1.09839596]
[1744898620310,0.34033863,587.65,585.85,0.34138431]
[1744898620505,0.30310815,587.64,585.86,0.3130994]
[1744898620708,0.34035022,587.63,585.88,0.34136683]
[1744898621008,0.30310815,587.62,585.89,0.3130994]
[1744898621210,0.3403618,587.61,585.91,0.34134935]
[1744898621410,0.30310815,587.6,585.92,0.3130994]
[1744898621803,0.30310815,587.6,585.94,0.34133187]
[1744898622003,0.34037338,587.59,585.94,0.34133187]
[1744898622309,0.30310815,587.58,585.95,0.3130994]
[1744898622611,0.34037338,587.59,585.97,0.3413144]
[1744898622808,0.34037338,587.59,585.98,0.3130994]
[1744898623008,0.34037338,587.59,586.0,0.34129692]
[1744898623309,0.34037338,587.59,586.01,0.3130994]
[1744898623511,0.34037338,587.59,586.03,0.34127945]
[1744898623709,0.34037338,587.59,586.04,0.3130994]
[1744898623909,0.34037338,587.59,586.06,0.34126198]
[1744898624110,0.34037338,587.59,586.07,0.3130994]
[1744898624311,0.34037338,587.59,586.09,0.34124451]
[1744898624611,0.34037338,587.59,586.1,0.3130994]
[1744898625013,0.34037338,587.59,586.12,0.34122705]
[1744898625212,0.34037338,587.59,586.13,0.3130994]
[1744898625410,0.34037338,587.59,586.15,0.34120958]
[1744898625611,0.34037338,587.59,586.16,0.3130994]
[1744898625812,0.34037338,587.59,586.18,0.34119212]
[1744898626508,0.34037338,587.59,586.19,0.31308875]
[1744898626712,0.30313043,587.58,586.19,0.31308875]
[1744898626912,0.34037338,587.59,586.19,0.31308875]
[1744898627713,0.30314457,587.58,586.19,0.31308875]
[1744898629015,0.34037338,587.59,586.18,0.34119212]
[1744898629216,0.30313631,587.58,586.19,0.31304048]
[1744898629518,0.34037338,587.59,586.18,0.34119212]
[1744898629713,0.30312826,587.58,586.19,0.31303512]
[1744898630719,0.34037338,587.59,586.19,0.31303512]
[1744898632517,0.34037338,587.59,586.21,0.34117466]
[1744898632811,0.34037338,587.59,586.22,0.31303512]
[1744898633314,0.34037338,587.59,586.24,0.3411572]
[1744898633508,0.34037338,587.59,586.25,0.31303512]
[1744898633816,0.34037338,587.59,586.27,0.34113974]
[1744898634119,0.34037338,587.59,586.28,0.31295158]
[1744898634314,0.34037338,587.59,586.3,0.34112229]
[1744898634615,0.34037338,587.59,586.31,0.31295158]
[1744898634816,0.34037338,587.59,586.33,0.34110483]
[1744898635011,0.34037338,587.59,586.34,0.31295158]
[1744898635210,0.34037338,587.59,586.36,0.34108738]
[1744898635414,0.34037338,587.59,586.37,0.31295158]
[1744898635612,0.34037338,587.59,586.39,0.34106993]
[1744898635817,0.34037338,587.59,586.4,0.31295158]
[1744898636014,0.34037338,587.59,586.42,0.34105248]
[1744898636317,0.34037338,587.59,586.43,0.31295158]
[1744898636510,0.34037338,587.59,586.45,0.34103504]
[1744898636713,0.34037338,587.59,586.46,0.31295158]
[1744898637013,0.34037338,587.59,586.47,0.34102341]
[1744898637214,0.34037338,587.59,586.48,0.31295158]
[1744898637509,0.34037338,587.59,586.49,0.34101178]
[1744898637715,0.34037338,587.59,586.5,0.31295158]
[1744898637910,0.34037338,587.59,586.51,0.34100015]
[1744898638113,0.34037338,587.59,586.52,0.31295158]
[1744898638309,0.34037338,587.59,586.53,0.34098852]
[1744898638514,0.34037338,587.59,586.54,0.31295158]
[1744898639116,0.34037338,587.59,586.53,0.34098852]
[1744898639117,0.34037338,587.59,586.55,0.34097689]
[1744898640820,0.636,587.58,586.55,0.34097689]
[1744898643824,0.636,587.58,586.56,0.31296967]
[1744898644021,0.636,587.58,586.55,0.34097689]
[1744898655231,0.636,587.58,586.55,0.93797689]
[1744898655436,0.30286644,587.57,586.55,0.93797689]
[1744898655630,0.636,587.58,586.55,0.93797689]
[1744898655835,0.30286506,587.57,586.55,0.93797689]
[1744898656033,0.636,587.58,586.55,0.93797689]
[1744898662545,0.636,587.58,586.55,1.74497689]
[1744898663640,0.636,587.58,586.55,2.52097689]
[1744898667949,0.636,587.58,586.56,0.31298453]
[1744898668351,0.636,587.58,586.56,0.65395561]
[1744898668550,0.636,587.58,586.57,0.31298453]
[1744898668946,0.636,587.58,586.56,0.34097108]
[1744898672451,0.636,587.58,586.57,0.3129891]
[1744898673450,0.636,587.58,586.56,0.34097108]
[1744898673756,0.636,587.58,586.57,0.31298973]
[1744898675558,0.636,587.58,586.56,0.63741756]
[1744898675751,0.636,587.58,586.57,0.31298938]
[1744898677055,0.636,587.58,586.56,0.63741756]
[1744898677355,0.636,587.58,586.57,0.3129881]
[1744898677851,0.636,587.58,586.58,0.691]
[1744898678151,0.636,587.58,586.59,0.3129881]
[1744898681056,0.636,587.58,586.6,0.852]
[1744898681258,0.636,587.58,586.61,0.3129881]
[1744898681657,0.636,587.58,586.6,0.852]
[1744898681859,0.636,587.58,586.61,0.31298789]
[1744898684861,0.636,587.58,586.62,0.31299211]
[1744898685060,0.636,587.58,586.61,0.31299211]
[1744898685359,0.636,587.58,586.62,0.31299211]
[1744898685561,0.636,587.58,586.62,0.658]
[1744898685760,0.636,587.58,586.63,0.31299211]
[1744898687564,0.3029304,587.57,586.63,0.31299211]
[1744898687960,0.30293058,587.56,586.62,0.658]
[1744898688163,0.30293058,587.58,586.63,0.31299035]
[1744898688364,0.30293058,587.57,586.63,0.31299035]
[1744898688564,0.30293058,587.58,586.63,0.31299035]
[1744898688764,0.30293058,587.57,586.63,0.31299035]
[1744898688965,0.30293058,587.58,586.63,0.31299035]
[1744898689286,0.30293058,587.57,586.63,0.31299035]
[1744898689566,0.34037338,587.59,586.62,0.658]
[1744898689864,0.34037338,587.59,586.63,0.31298684]
[1744898689865,0.30293494,587.58,586.63,0.31298684]
[1744898691167,0.87093494,587.58,586.63,0.31298684]
[1744898691359,0.568,587.58,586.62,0.658]
[1744898691564,0.30292745,587.57,586.63,0.31298978]
[1744898693165,0.30293199,587.56,586.64,0.31298776]
[1744898693369,0.30293199,587.55,586.65,0.31298776]
[1744898693573,0.568,587.58,586.66,0.31298776]
[1744898693766,0.30293135,587.57,586.67,0.31298776]
[1744898693969,0.568,587.58,586.62,0.9544389]
[1744898694169,0.568,587.58,586.63,0.31298863]
[1744898694671,0.568,587.58,586.62,0.9544389]
[1744898694972,0.568,587.58,586.63,0.31299116]
[1744898696471,0.568,587.58,586.64,0.31298862]
[1744898696771,0.568,587.58,586.63,0.31298862]
[1744898697071,0.568,587.58,586.62,0.95443764]
[1744898697271,0.568,587.58,586.63,0.31298455]
[1744898698568,0.568,587.58,586.6,0.852]
[1744898698768,0.568,587.58,586.61,0.31298564]
[1744898699469,0.568,587.58,586.6,0.852]
[1744898699672,0.568,587.58,586.62,0.29643764]
[1744898699872,0.568,587.58,586.63,0.31298669]
[1744898700070,0.568,587.58,586.62,0.29643764]
[1744898700373,0.568,587.58,586.63,0.31298412]
[1744898700973,0.568,587.58,586.62,0.29643764]
[1744898701171,0.568,587.58,586.64,0.659]
[1744898703774,0.568,587.58,586.65,0.31298698]
[1744898703971,0.568,587.58,586.64,0.659]
[1744898704175,0.568,587.58,586.65,0.31298736]
[1744898704375,0.568,587.58,586.64,0.659]
[1744898705679,0.568,587.58,586.65,0.31299441]
[1744898707279,0.568,587.58,586.65,0.92199441]
[1744898707475,0.568,587.58,586.66,0.31299441]
[1744898707876,0.568,587.58,586.65,0.609]
[1744898718580,0.30282719,587.57,586.65,0.609]
[1744898719083,0.30282719,587.56,586.65,0.609]
[1744898719285,0.30282719,587.58,586.65,0.609]
[1744898719484,0.30282719,587.57,586.65,0.609]
[1744898719684,0.30270409,587.56,586.65,0.609]
[1744898719885,0.30270409,587.58,586.65,0.609]
[1744898721184,0.34037338,587.59,586.65,0.609]
[1744898722387,0.844,587.58,586.65,0.609]
[1744898722580,1.18437918,587.58,586.65,0.609]
[1744898724190,0.34038497,587.57,586.65,0.609]
[1744898726687,0.59915074,587.56,586.65,0.609]
[1744898726893,0.30263228,587.55,586.65,0.609]
[1744898727192,0.34040235,587.54,586.65,0.609]
[1744898727393,0.30263228,587.53,586.65,0.609]
[1744898727594,0.34040814,587.53,586.65,0.609]
[1744898730091,0.30265175,587.52,586.65,0.609]
[1744898730291,0.34041973,587.51,586.31,0.29652604]
[1744898730492,0.30265175,587.5,586.31,0.29652604]
[1744898730697,0.34043132,587.49,586.31,0.29652604]
[1744898731196,0.34043132,587.49,586.31,0.63764251]
[1744898734498,0.34043132,587.49,586.31,0.34111647]
[1744898735704,0.34043132,587.49,586.31,0.63767916]
[1744898737305,0.34043132,587.49,586.31,0.34111647]
[1744898737806,0.34043132,587.49,586.31,0.63765894]
[1744898740411,0.34043132,587.49,586.31,0.34111647]
[1744898741810,0.34043132,587.49,586.31,0.63767916]
[1744898743313,0.34043132,587.49,586.31,0.34111647]
[1744898743612,0.34043132,587.49,586.31,0.63765894]
[1744898746517,0.34043132,587.49,586.31,0.34111647]
[1744898747718,0.34043132,587.49,586.31,0.63767916]
[1744898749820,0.30263197,587.48,586.31,0.63767916]
[1744898750022,0.34043132,587.49,586.31,0.63767916]
[1744898750917,0.3025922,587.48,586.31,0.63767916]
[1744898751518,0.34043132,587.49,586.31,0.63767916]
[1744898752418,0.34043132,587.49,586.31,0.34111647]
[1744898752621,0.34043132,587.49,586.31,0.63766905]
[1744898755324,0.34043132,587.49,586.31,0.34111647]
[1744898755719,0.34043132,587.49,586.31,0.63766399]
[1744898756925,0.30255291,587.48,586.31,0.63766399]
[1744898757127,0.34043132,587.49,586.31,0.63766399]
[1744898757323,0.30255222,587.48,586.31,0.63766399]
[1744898758428,0.30255222,587.48,586.31,0.34111647]
[1744898758627,0.30255222,587.48,586.32,0.31314882]
[1744898760528,0.30255222,587.48,586.32,0.65425947]
[1744898760726,0.30255222,587.48,586.33,0.31314882]
[1744898761423,0.34043132,587.49,586.33,0.64]
[1744898761728,0.3025393,587.48,586.34,0.3131413]
[1744898764625,0.3025393,587.48,586.35,0.515]
[1744898764830,0.3025393,587.48,586.36,0.3131413]
[1744898766132,0.34043132,587.49,586.35,0.515]
[1744898766332,0.30254136,587.48,586.36,0.31314826]
[1744898767833,0.30253779,587.47,586.37,0.31314886]
[1744898768034,0.30253779,587.46,586.38,0.31314886]
[1744898768233,0.30253779,587.48,586.36,0.31314886]
[1744898768434,0.30253779,587.47,586.35,0.515]
[1744898768632,0.30253779,587.48,586.36,0.31314856]
[1744898769230,0.34043132,587.49,586.35,0.515]
[1744898769430,0.30254255,587.48,586.37,0.31314826]
[1744898769634,0.30254255,587.48,586.38,0.31314826]
[1744898769835,0.30254255,587.48,586.35,0.515]
[1744898769836,0.30254255,587.48,586.36,0.31314826]
[1744898770036,0.30254255,587.48,586.37,0.31314826]
[1744898770236,0.30254255,587.48,586.36,0.31314826]
[1744898772335,0.30254255,587.48,586.35,0.81154752]
[1744898773344,0.30254255,587.48,586.35,0.515]
[1744898773739,0.30254255,587.48,586.35,0.81154752]
[1744898775643,0.34043132,587.49,586.35,0.81154752]
[1744898775843,0.3025797,587.48,586.36,0.591]
[1744898777846,0.526,587.47,586.36,0.591]
[1744898778045,0.3025797,587.46,586.36,0.591]
[1744898778744,0.526,587.47,586.36,0.591]
[1744898778946,0.30259458,587.46,586.36,0.591]
[1744898783448,0.526,587.47,586.36,0.591]
[1744898783649,0.30260749,587.46,586.36,0.591]
[1744898785853,0.30260749,587.46,586.37,0.31314792]
[1744898786056,0.526,587.47,586.37,0.31314792]
[1744898786249,0.526,587.47,586.36,0.591]
[1744898787055,0.526,587.47,586.37,0.31307347]
[1744898788355,0.526,587.47,586.38,0.34107575]
[1744898788557,0.526,587.47,586.39,0.31307347]
[1744898788749,0.526,587.47,586.4,0.34106412]
[1744898788952,0.526,587.47,586.41,0.31307347]
[1744898789151,0.526,587.47,586.42,0.34105248]
[1744898789357,0.526,587.47,586.43,0.31307347]
[1744898789656,0.526,587.47,586.44,0.34104085]
[1744898789856,0.526,587.47,586.45,0.31305838]
[1744898790755,0.526,587.47,586.44,0.34104085]
[1744898790951,0.526,587.47,586.45,0.31306126]
[1744898791151,0.526,587.47,586.45,0.6540963]
[1744898791353,0.526,587.47,586.45,0.34103504]
[1744898791553,0.526,587.47,586.46,0.31305869]
[1744898792154,0.526,587.47,586.45,0.34103504]
[1744898794958,0.34043132,587.49,586.45,0.34103504]
[1744898796558,0.34043132,587.49,586.46,0.805]
[1744898797057,0.34043132,587.49,586.47,0.31303137]
[1744898797255,0.34043132,587.49,586.48,0.34101759]
[1744898798158,0.766,587.48,586.48,0.34101759]
[1744898803862,0.766,587.48,586.49,0.3130477]
[1744898804060,0.766,587.48,586.5,0.34100596]
[1744898806863,0.766,587.48,586.51,0.3130551]
[1744898807063,0.766,587.48,586.51,0.65405525]
[1744898807362,0.766,587.48,586.52,0.3130551]
[1744898807859,0.766,587.48,586.51,0.34100015]
[1744898808059,0.766,587.48,586.52,0.31305831]
[1744898809364,0.766,587.48,586.51,0.34100015]
[1744898809565,0.766,587.48,586.53,0.31305169]
[1744898809762,0.766,587.48,586.54,0.31305169]
[1744898810063,0.766,587.48,586.55,0.31305169]
[1744898810258,0.766,587.48,586.52,0.31305169]
[1744898810458,0.766,587.48,586.53,0.31305169]
[1744898810662,0.766,587.48,586.52,0.31305169]
[1744898811762,0.30271537,587.47,586.52,0.31305169]
[1744898812864,0.766,587.48,586.52,0.31305169]
[1744898813063,0.766,587.48,586.51,0.6374782]
[1744898813367,0.30260808,587.47,586.51,0.34100015]
[1744898815867,0.30260808,587.47,586.52,0.739]
[1744898816061,0.766,587.48,586.52,0.739]
[1744898819666,0.766,587.48,586.52,1.516]
[1744898820166,0.30262967,587.47,586.52,1.516]
[1744898821964,0.34044871,587.46,586.52,1.516]
[1744898822267,0.30262967,587.45,586.52,1.516]
[1744898822867,0.3404603,587.44,586.52,1.516]
[1744898823069,0.30262967,587.43,586.52,1.516]
[1744898823267,0.34047189,587.42,586.52,1.516]
[1744898823462,0.30262967,587.41,586.52,1.516]
[1744898824571,0.34047189,587.42,586.52,1.516]
[1744898825173,0.30258974,587.41,586.52,1.516]
[1744898826171,0.34047189,587.42,586.52,1.516]
[1744898826366,0.30257873,587.4,586.52,1.516]
[1744898826574,0.34047189,587.42,586.52,1.516]
[1744898826773,0.30257152,587.41,586.52,1.516]
[1744898826968,0.97157152,587.41,586.52,1.516]
[1744898827171,0.30257152,587.4,586.52,1.516]
[1744898828974,0.643055,587.4,586.52,1.516]
[1744898829174,0.6430608,587.39,586.52,1.516]
[1744898829375,0.64306659,587.38,586.52,1.516]
[1744898829574,0.64307239,587.37,586.52,1.516]
[1744898829874,0.30257152,587.36,586.52,1.516]
[1744898830370,0.34050087,587.37,586.52,1.516]
[1744898831276,0.30252561,587.36,586.52,1.516]
[1744898832079,0.34051247,587.35,586.52,1.516]
[1744898832379,0.30252561,587.34,586.52,1.516]
[1744898832577,0.34051247,587.35,586.52,1.516]
[1744898832778,0.3024778,587.34,586.52,1.516]
[1744898833880,0.34052406,587.33,586.52,1.516]
[1744898834180,0.3024778,587.32,586.52,1.516]
[1744898834680,0.29662209,587.31,586.52,1.516]
[1744898834874,0.3024778,587.3,586.52,1.516]
[1744898836681,0.3024778,587.32,586.52,1.516]
[1744898837483,0.93959007,587.31,586.52,1.516]
[1744898837782,0.64296114,587.3,586.52,1.516]
[1744898838081,0.30241968,587.29,586.52,1.516]
[1744898838280,0.30241968,587.29,586.52,2.033]
[1744898838481,0.34054146,587.3,586.52,2.033]
[1744898839479,0.30239318,587.29,586.52,2.033]
[1744898841080,0.34055305,587.28,586.52,2.033]
[1744898841279,0.30239318,587.27,586.52,2.033]
[1744898841482,0.30239318,587.26,586.52,2.033]
[1744898841682,0.30239318,587.25,586.52,2.033]
[1744898841883,0.30239318,587.27,586.52,2.033]
[1744898842084,0.695,587.24,586.52,2.033]
[1744898842285,0.64297523,587.23,586.52,2.033]
[1744898842585,0.64298103,587.22,586.52,2.033]
[1744898842786,0.64298683,587.21,586.52,2.033]
[1744898842981,0.64299263,587.2,586.52,2.033]
[1744898843180,0.34060525,587.19,586.52,2.033]
[1744898844587,0.30238145,587.18,586.52,2.033]
[1744898844886,0.34061685,587.17,586.52,2.033]
[1744898845085,0.30238145,587.16,586.52,2.033]
[1744898845291,0.34062845,587.15,586.52,2.033]
[1744898845491,0.30238783,587.14,586.52,2.033]
[1744898845791,0.34064006,587.13,586.52,2.033]
[1744898845987,0.30238783,587.12,586.52,2.033]
[1744898846185,0.34065166,587.11,586.52,2.033]
[1744898846384,0.30238783,587.1,586.52,2.033]
[1744898846785,0.34066327,587.09,586.52,2.033]
[1744898846991,0.30238783,587.08,586.52,2.033]
[1744898849395,0.34067487,587.07,586.52,2.033]
[1744898849596,0.30238783,587.06,586.52,2.033]
[1744898849996,0.34067487,587.07,586.52,2.033]
[1744898850196,0.30230446,587.06,586.52,2.033]
[1744898850389,0.34067487,587.07,586.52,2.033]
[1744898850692,0.30226949,587.06,586.52,2.033]
[1744898851597,0.30225835,587.05,586.52,2.033]
[1744898851798,0.30225835,587.06,586.52,2.033]
[1744898851997,0.30225835,587.05,586.52,2.033]
[1744898852193,0.30225835,587.04,586.52,2.033]
[1744898852400,0.30225835,587.03,586.52,2.033]
[1744898852600,0.30225835,587.06,586.52,2.033]
[1744898852901,0.29674097,587.03,586.52,2.033]
[1744898853094,0.34070389,587.02,586.52,2.033]
[1744898853803,0.30225708,587.01,586.52,2.033]
[1744898854903,0.93972673,587.0,586.52,2.033]
[1744898855101,0.64298524,586.99,586.52,2.033]
[1744898855298,0.64299105,586.98,586.52,2.033]
[1744898855602,0.64299685,586.97,586.52,2.033]
[1744898855808,0.64300266,586.96,586.52,2.033]
[1744898856006,0.64300846,586.95,586.52,0.739]
[1744898856206,0.34075033,586.94,586.52,0.739]
[1744898856402,0.30222075,586.93,586.52,0.739]
[1744898856809,0.34076194,586.92,586.52,0.739]
[1744898857006,0.30222075,586.91,586.52,0.739]
[1744898857610,0.34077355,586.9,586.52,0.739]
[1744898858909,0.34077355,586.9,586.44,1.165]
[1744898862814,1.03477355,586.9,586.44,1.165]
[1744898866213,0.30223087,586.89,586.44,1.165]
[1744898869217,1.03477355,586.9,586.44,1.165]
[1744898870314,0.3022233,586.89,586.44,1.165]
[1744898870515,1.03477355,586.9,586.44,1.165]
[1744898873018,0.694,586.9,586.44,1.165]
[1744898883219,0.30226998,586.89,586.44,1.165]
[1744898883424,0.30226998,586.89,586.44,0.609]
[1744898883724,0.694,586.9,586.44,0.609]
[1744898886722,0.694,586.9,586.44,1.184]
[1744898890821,0.29678272,586.89,586.44,1.184]
[1744898891326,0.29678272,586.89,586.44,0.575]
[1744898893430,0.694,586.9,586.44,0.575]
[1744898893731,0.694,586.9,586.44,1.108]
[1744898894731,0.29678272,586.89,586.44,1.108]
[1744898896431,0.694,586.9,586.44,1.108]
[1744898900336,0.30188519,586.89,586.44,1.108]
[1744898900527,0.34078516,586.88,586.44,1.108]
[1744898900729,0.30188519,586.87,586.44,1.108]
[1744898901937,0.34078516,586.88,586.44,1.108]
[1744898901938,0.30188559,586.86,586.44,1.108]
[1744898902137,0.30188559,586.87,586.44,1.108]
[1744898902330,0.30188559,586.86,586.44,1.108]
[1744898902533,0.30188559,586.87,586.44,1.108]
[1744898905238,0.64267656,586.87,586.44,1.108]
[1744898905441,0.30188559,586.86,586.44,1.108]
[1744898905839,0.59869742,586.86,586.44,1.108]
[1744898906036,0.30188559,586.85,586.44,1.108]
[1744898906739,0.30188559,586.85,586.44,0.575]
[1744898906941,0.34080839,586.84,586.44,0.575]
[1744898907138,0.30188559,586.83,586.44,0.575]
[1744898907338,0.34082001,586.82,586.44,0.575]
[1744898908042,0.30187562,586.81,586.44,0.575]
[1744898911339,0.34082001,586.82,586.44,0.575]
[1744898911544,0.30190904,586.81,586.44,0.575]
[1744898912943,0.34082001,586.82,586.44,0.575]
[1744898918649,0.30190726,586.81,586.44,0.575]
[1744898919145,0.34082001,586.82,586.44,0.575]
[1744898920151,0.30189484,586.81,586.44,0.575]
[1744898920652,0.29682955,586.8,586.44,0.575]
[1744898920851,0.30189484,586.79,586.44,0.575]
[1744898922352,0.34084324,586.78,586.44,0.575]
[1744898924353,0.30189313,586.77,586.44,0.575]
[1744898924954,0.64274218,586.77,586.44,0.575]
[1744898925151,0.30189313,586.76,586.44,0.575]
[1744898925350,0.34084905,586.77,586.44,0.575]
[1744898930257,0.30187604,586.76,586.44,0.575]
[1744898931958,0.34084905,586.77,586.44,0.575]
[1744898940871,0.34084905,586.77,586.35,0.735]
[1744898947070,0.34084905,586.77,586.31,1.381]
[1744898951075,0.34084905,586.77,586.31,1.98]
[1744898952880,0.30187629,586.76,586.31,1.98]
[1744898956775,0.30187629,586.76,586.31,1.381]
[1744898956976,0.34085486,586.76,586.31,1.381]
[1744898957480,0.30183756,586.75,586.31,1.381]
[1744898957680,0.34086648,586.74,586.31,1.381]
[1744898957975,0.30183756,586.73,586.31,1.381]
[1744898958180,0.34086648,586.74,586.31,1.381]
[1744898958381,0.3018304,586.73,586.31,1.381]
[1744898958783,0.3408781,586.72,586.31,1.381]
[1744898958981,0.3018304,586.71,586.31,1.381]
[1744898959182,0.34088972,586.7,586.31,1.381]
[1744898959383,0.3018304,586.69,586.31,1.381]
[1744898959577,0.34088972,586.7,586.31,1.381]
[1744898960183,0.30175211,586.69,586.31,1.381]
[1744898960582,0.34090134,586.68,586.31,1.381]
[1744898960779,0.30175211,586.67,586.31,1.381]
[1744898960980,0.34091296,586.66,586.31,1.381]
[1744898961183,0.30175211,586.65,586.31,1.381]
[1744898961384,0.34092458,586.64,586.31,1.381]
[1744898961582,0.30175211,586.63,586.31,1.381]
[1744898961782,0.34093621,586.62,586.31,1.381]
[1744898961984,0.30175211,586.61,586.31,1.381]
[1744898962180,0.34094783,586.6,586.31,1.381]
[1744898962383,0.30175211,586.59,586.31,1.381]
[1744898962584,0.64270575,586.59,586.31,1.381]
[1744898962778,0.30175211,586.58,586.31,1.381]
[1744898963585,0.30175211,586.58,586.31,0.674]
[1744898965086,0.34095364,586.59,586.31,0.674]
[1744898969691,0.30179734,586.58,586.31,0.674]
[1744898971791,0.30179156,586.57,586.31,0.674]
[1744898971987,0.30179156,586.58,586.31,0.674]
[1744898972190,0.30179156,586.57,586.31,0.674]
[1744898972487,0.30179156,586.56,586.31,0.674]
[1744898972686,0.30179156,586.58,586.31,0.674]
[1744898973485,0.30180128,586.57,586.31,0.674]
[1744898973689,0.30180128,586.56,586.31,0.674]
[1744898973891,0.30180128,586.58,586.31,0.674]
[1744898974087,0.30180128,586.57,586.31,0.674]
[1744898974486,0.30180128,586.56,586.31,0.674]
[1744898974792,0.30180128,586.55,586.31,0.674]
[1744898974986,0.30180128,586.58,586.31,0.674]
[1744898975388,0.34095364,586.59,586.31,0.674]
[1744898984397,0.34095364,586.59,586.13,1.28]
[1744898987295,0.94195364,586.59,586.13,1.28]
[1744898987900,0.601,586.59,586.13,1.87]
[1744899129823,0.601,586.59,586.13,2.21122123]
[1744899131423,0.601,586.59,586.14,0.3412154]
[1744899131824,1.29824102,587.85,586.14,0.3412154]
[1744899132026,0.29672705,587.45,586.14,0.3412154]
[1744899132226,0.30211425,587.44,586.14,0.3412154]
[1744899132625,0.34046609,587.43,586.14,0.3412154]
[1744899133026,0.30209769,587.42,586.14,0.3412154]
[1744899133227,0.34047769,587.41,586.14,0.3412154]
[1744899133422,0.30209769,587.4,586.14,0.3412154]